fUSD/lending_fUSD_20250216
["ID","MTS","AMOUNT","RATE_DAILY","PERIOD"]
[353256232,1739719853279,-500.0,0.00011123,2]
[353256233,1739719853290,-500.0,0.00011123,2]
[353256234,1739719853300,-500.0,0.00011123,2]
[353256235,1739719853310,-500.0,0.00011123,2]
[353256236,1739719853320,-500.0,0.00011123,2]
[353256237,1739719853329,-572.02,0.00011123,2]
[353256238,1739719853339,-500.0,0.00011123,2]
[353256239,1739719853349,-500.0,0.00011123,2]
[353256240,1739719853359,-500.0,0.00011123,2]
[353256241,1739719853368,-500.0,0.00011123,2]
[353256242,1739719853378,-500.0,0.00011123,2]
[353256243,1739719853388,-564.69,0.00011123,2]
[353256244,1739719853397,-551.48,0.00011123,2]
[353256245,1739719853407,-500.0,0.00011123,2]
[353256246,1739719853416,-500.0,0.00011123,2]
[353256247,1739719853426,-676.69,0.00011123,2]
[353256248,1739719853436,-500.0,0.00011123,2]
[353256249,1739719853447,-615.32,0.00011123,2]
[353256250,1739719853458,-500.0,0.00011123,2]
[353256251,1739719853467,-500.0,0.00011123,2]
[353256252,1739719853477,-500.0,0.00011123,2]
[353256253,1739719853487,-500.0,0.00011123,2]
[353256254,1739719853496,-594.63,0.00011123,2]
[353256255,1739719853505,-500.0,0.00011123,2]
[353256256,1739719853514,-647.43,0.00011123,2]
[353256257,1739719853524,-500.0,0.00011123,2]
[353256258,1739719853533,-605.03,0.00011123,2]
[353256259,1739719853542,-500.0,0.00011123,2]
[353256260,1739719853552,-737.6,0.00011123,2]
[353256261,1739719853562,-500.0,0.00011123,2]
[353256262,1739719853571,-500.0,0.00011123,2]
[353256263,1739719853580,-500.0,0.00011123,2]
[353256264,1739719853590,-500.0,0.00011123,2]
[353256265,1739719853600,-500.0,0.00011123,2]
[353256266,1739719853610,-677.67,0.00011123,2]
[353256267,1739719853620,-500.0,0.00011123,2]
[353256268,1739719853630,-500.0,0.00011123,2]
[353256269,1739719853639,-856.01,0.00011123,2]
[353256270,1739719853649,-580.88,0.00011123,2]
[353256271,1739719853659,-500.0,0.00011123,2]
[353256272,1739719853842,-500.0,0.00011123,2]
[353256273,1739719853852,-500.0,0.00011123,2]
[353256274,1739719853863,-500.0,0.00011123,2]
[353256275,1739719853872,-547.28,0.00011123,2]
[353256276,1739719853881,-659.59,0.00011123,2]
[353256277,1739719853891,-500.0,0.00011123,2]
[353256278,1739719853900,-500.0,0.00011123,2]
[353256279,1739719853909,-500.0,0.00011123,2]
[353256280,1739719853919,-500.0,0.00011123,2]
[353256281,1739719853929,-500.0,0.00011123,2]
[353256282,1739719853938,-500.0,0.00011123,2]
[353256283,1739719853948,-500.0,0.00011123,2]
[353256284,1739719853957,-500.0,0.00011123,2]
[353256285,1739719853968,-500.0,0.00011123,2]
[353256286,1739719853977,-500.0,0.00011123,2]
[353256287,1739719853987,-500.0,0.00011123,2]
[353256288,1739719853996,-679.65,0.00011123,2]
[353256289,1739719854006,-635.55,0.00011123,2]
[353256290,1739719854015,-500.0,0.00011123,2]
[353256291,1739719854025,-297.92922519,0.00011123,2]
[353256292,1739719854034,-1531.02,0.00011123,2]
[353256293,1739719854043,-500.0,0.00011123,2]
[353256294,1739719854053,-500.0,0.00011123,2]
[353256295,1739719854062,-500.0,0.00011123,2]
[353256296,1739719854072,-710.02,0.00011123,2]
[353256297,1739719854082,-552.24,0.00011123,2]
[353256298,1739719854091,-609.92,0.00011123,2]
[353256299,1739719854100,-775.33,0.00011123,2]
[353256300,1739719854110,-927.32,0.00011123,2]
[353256301,1739719854119,-1091.82,0.00011123,2]
[353256302,1739719854129,-833.8,0.00011123,2]
[353256303,1739719854138,-713.28,0.00011123,2]
[353256304,1739719854147,-508.8116063,0.00011123,2]
[353256305,1739719854156,-2162.44,0.00011123,2]
[353256306,1739719854165,-500.0,0.00011123,2]
[353256307,1739719854174,-500.0,0.00011123,2]
[353256308,1739719854183,-661.28,0.00011123,2]
[353256309,1739719854193,-763.65,0.00011123,2]
[353256310,1739719854202,-500.0,0.00011123,2]
[353256311,1739719854216,-500.0,0.00011123,2]
[353256312,1739719854225,-500.0,0.00011123,2]
[353256313,1739719854234,-696.46,0.00011123,2]
[353256314,1739719854243,-1505.24,0.00011123,2]
[353256315,1739719854252,-500.0,0.00011123,2]
[353256316,1739719854262,-500.0,0.00011123,2]
[353256317,1739719854271,-500.0,0.00011123,2]
[353256318,1739719854280,-500.0,0.00011123,2]
[353256319,1739719854291,-910.39,0.00011123,2]
[353256320,1739719854301,-1016.22,0.00011123,2]
[353256321,1739719854310,-1653.06,0.00011123,2]
[353256322,1739719854319,-840.07,0.00011123,2]
[353256323,1739719854329,-500.0,0.00011123,2]
[353256324,1739719854338,-997.87,0.00011123,2]
[353256325,1739719854348,-500.0,0.00011123,2]
[353256326,1739719854358,-1941.86,0.00011123,2]
[353256327,1739719854367,-1341.68,0.00011123,2]
[353256328,1739719854376,-500.0,0.00011123,2]
[353256329,1739719854385,-500.0,0.00011123,2]
[353256330,1739719854395,-960.55,0.00011123,2]
[353256331,1739719854404,-500.0,0.00011123,2]
[353256332,1739719854413,-1590.08,0.00011123,2]
[353256333,1739719854422,-500.0,0.00011123,2]
[353256334,1739719854431,-1316.29,0.00011123,2]
[353256335,1739719854440,-628.04,0.00011123,2]
[353256336,1739719854450,-967.16,0.00011123,2]
[353256337,1739719854459,-500.0,0.00011123,2]
[353256338,1739719854467,-500.0,0.00011123,2]
[353256339,1739719854477,-1082.77,0.00011123,2]
[353256340,1739719854486,-322.41778786,0.00011123,2]
[353256341,1739719854494,-4185.89,0.00011123,2]
[353256342,1739719854503,-537.42,0.00011123,2]
[353256343,1739719854512,-500.0,0.00011123,2]
[353256344,1739719854521,-500.0,0.00011123,2]
[353256345,1739719854531,-1148.65,0.00011123,2]
[353256346,1739719854540,-522.8,0.00011123,2]
[353256347,1739719854550,-500.0,0.00011123,2]
[353256348,1739719854559,-500.0,0.00011123,2]
[353256349,1739719854568,-1133.71,0.00011123,2]
[353256350,1739719854577,-1188.19,0.00011123,2]
[353256351,1739719854586,-500.0,0.00011123,2]
[353256352,1739719854595,-500.0,0.00011123,2]
[353256353,1739719854604,-1545.2,0.00011123,2]
[353256354,1739719854613,-500.0,0.00011123,2]
[353256355,1739719854622,-1208.7,0.00011123,2]
[353256356,1739719854630,-500.0,0.00011123,2]
[353256357,1739719854639,-500.0,0.00011123,2]
[353256358,1739719854648,-3059.32,0.00011123,2]
[353256359,1739719854657,-500.0,0.00011123,2]
[353256360,1739719854666,-575.61,0.00011123,2]
[353256361,1739719854675,-1330.36,0.00011123,2]
[353256362,1739719854684,-500.0,0.00011123,2]
[353256363,1739719854693,-1260.47,0.00011123,2]
[353256364,1739719854703,-500.0,0.00011123,2]
[353256365,1739719854712,-500.0,0.00011123,2]
[353256366,1739719854722,-944.72,0.00011123,2]
[353256367,1739719854731,-657.52,0.00011123,2]
[353256368,1739719854740,-656.43,0.00011123,2]
[353256369,1739719854750,-533.75,0.00011123,2]
[353256370,1739719854759,-500.0,0.00011123,2]
[353256371,1739719854767,-500.0,0.00011123,2]
[353256372,1739719854777,-500.0,0.00011123,2]
[353256373,1739719854786,-1280.71,0.00011123,2]
[353256374,1739719854795,-1667.11,0.00011123,2]
[353256375,1739719854805,-1761.78,0.00011123,2]
[353256376,1739719854814,-500.0,0.00011123,2]
[353256377,1739719854824,-655.49,0.00011123,2]
[353256378,1739719854833,-765.75,0.00011123,2]
[353256379,1739719854843,-500.0,0.00011123,2]
[353256380,1739719854853,-954.99,0.00011123,2]
[353256381,1739719854862,-510.92,0.00011123,2]
[353256382,1739719854871,-1071.72,0.00011123,2]
[353256383,1739719854880,-898.62,0.00011123,2]
[353256384,1739719854889,-963.74,0.00011123,2]
[353256385,1739719854899,-500.0,0.00011123,2]
[353256386,1739719854908,-500.0,0.00011123,2]
[353256387,1739719854917,-500.0,0.00011123,2]
[353256388,1739719854927,-1095.34,0.00011123,2]
[353256389,1739719854936,-500.0,0.00011123,2]
[353256390,1739719854946,-1432.53,0.00011123,2]
[353256391,1739719854955,-1288.05,0.00011123,2]
[353256392,1739719854964,-1131.27,0.00011123,2]
[353256393,1739719854973,-1497.56,0.00011123,2]
[353256394,1739719854982,-1710.67,0.00011123,2]
[353256395,1739719854991,-500.0,0.00011123,2]
[353256396,1739719855000,-938.67,0.00011123,2]
[353256397,1739719855010,-922.59,0.00011123,2]
[353256398,1739719855019,-500.0,0.00011123,2]
[353256399,1739719855028,-500.0,0.00011123,2]
[353256400,1739719855037,-500.0,0.00011123,2]
[353256401,1739719855046,-1297.94,0.00011123,2]
[353256402,1739719855055,-500.0,0.00011123,2]
[353256403,1739719855064,-500.0,0.00011123,2]
[353256404,1739719855074,-1275.03,0.00011123,2]
[353256405,1739719855083,-1207.44,0.00011123,2]
[353256406,1739719855092,-857.03,0.00011123,2]
[353256407,1739719855101,-1139.27,0.00011123,2]
[353256408,1739719855110,-989.2,0.00011123,2]
[353256409,1739719855119,-2609.71,0.00011123,2]
[353256410,1739719855128,-2357.36,0.00011123,2]
[353256411,1739719855138,-948.68,0.00011123,2]
[353256412,1739719855148,-500.0,0.00011123,2]
[353256413,1739719855158,-500.0,0.00011123,2]
[353256414,1739719855167,-1322.5,0.00011123,2]
[353256415,1739719855176,-745.27,0.00011123,2]
[353256416,1739719855185,-1014.65,0.00011123,2]
[353256417,1739719855194,-3965.85,0.00011123,2]
[353256418,1739719855203,-732.97,0.00011123,2]
[353256419,1739719855216,-1054.68,0.00011123,2]
[353256420,1739719855225,-1445.76,0.00011123,2]
[353256421,1739719855234,-500.0,0.00011123,2]
[353256422,1739719855243,-1029.25,0.00011123,2]
[353256423,1739719855252,-647.83,0.00011123,2]
[353256424,1739719855262,-500.0,0.00011123,2]
[353256425,1739719855270,-500.0,0.00011123,2]
[353256426,1739719855279,-1589.44,0.00011123,2]
[353256427,1739719855289,-500.0,0.00011123,2]
[353256428,1739719855298,-1129.52,0.00011123,2]
[353256429,1739719855307,-500.0,0.00011123,2]
[353256430,1739719855316,-500.0,0.00011123,2]
[353256431,1739719855326,-1428.0,0.00011123,2]
[353256432,1739719855335,-500.0,0.00011123,2]
[353256433,1739719855344,-856.52,0.00011123,2]
[353256434,1739719855353,-1397.84,0.00011123,2]
[353256435,1739719855362,-2006.41,0.00011123,2]
[353256436,1739719855371,-1495.83,0.00011123,2]
[353256437,1739719855381,-2283.55,0.00011123,2]
[353256438,1739719855390,-1573.52,0.00011123,2]
[353256439,1739719855399,-950.54,0.00011123,2]
[353256440,1739719855407,-500.0,0.00011123,2]
[353256441,1739719855417,-1000.0,0.00011123,2]
[353256442,1739719855426,-455.78,0.00011123,2]
[353256443,1739719855435,-1359.93,0.00011123,2]
[353256444,1739719855444,-500.0,0.00011123,2]
[353256445,1739719855453,-629.85,0.00011123,2]
[353256446,1739719855462,-500.0,0.00011123,2]
[353256447,1739719855471,-500.0,0.00011123,2]
[353256448,1739719855480,-1550.81,0.00011123,2]
[353256449,1739719855489,-1723.99,0.00011123,2]
[353256450,1739719855498,-151.0,0.00011123,2]
[353256451,1739719855507,-937.03,0.00011123,2]
[353256452,1739719855516,-1047.35,0.00011123,2]
[353256453,1739719855526,-500.0,0.00011123,2]
[353256454,1739719855535,-835.09,0.00011123,2]
[353256455,1739719855544,-500.0,0.00011123,2]
[353256456,1739719855553,-989.7,0.00011123,2]
[353256457,1739719855562,-1680.52,0.00011123,2]
[353256458,1739719855571,-503.35923834,0.00011123,2]
[353256459,1739719855580,-306.97145648,0.00011123,2]
[353256460,1739719855589,-500.0,0.00011123,2]
[353256461,1739719855598,-502.61,0.00011123,2]
[353256462,1739719855607,-2083.21,0.00011123,2]
[353256463,1739719855616,-1596.94,0.00011123,2]
[353256464,1739719855625,-685.52,0.00011123,2]
[353256465,1739719855634,-2108.61,0.00011123,2]
[353256466,1739719855643,-500.0,0.00011123,2]
[353256467,1739719855652,-500.0,0.00011123,2]
[353256468,1739719855661,-1064.74,0.00011123,2]
[353256469,1739719855670,-500.0,0.00011123,2]
[353256470,1739719855680,-704.43,0.00011123,2]
[353256471,1739719855689,-1852.92,0.00011123,2]
[353256472,1739719855699,-500.0,0.00011123,2]
[353256473,1739719855709,-500.0,0.00011123,2]
[353256474,1739719855718,-500.0,0.00011123,2]
[353256475,1739719855727,-564.7,0.00011123,2]
[353256476,1739719855736,-726.22,0.00011123,2]
[353256477,1739719855745,-1272.36,0.00011123,2]
[353256478,1739719855754,-500.0,0.00011123,2]
[353256479,1739719855764,-500.0,0.00011123,2]
[353256480,1739719855772,-709.56,0.00011123,2]
[353256481,1739719855781,-500.0,0.00011123,2]
[353256482,1739719855791,-580.11,0.00011123,2]
[353256483,1739719855800,-1243.11,0.00011123,2]
[353256484,1739719855809,-1320.64,0.00011123,2]
[353256485,1739719855818,-500.0,0.00011123,2]
[353256486,1739719855827,-893.54,0.00011123,2]
[353256487,1739719855836,-500.0,0.00011123,2]
[353256488,1739719855845,-500.0,0.00011123,2]
[353256489,1739719855855,-636.44,0.00011123,2]
[353256490,1739719855864,-500.0,0.00011123,2]
[353256491,1739719855873,-500.0,0.00011123,2]
[353256492,1739719855883,-500.0,0.00011123,2]
[353256493,1739719855891,-748.46,0.00011123,2]
[353256494,1739719855901,-500.0,0.00011123,2]
[353256495,1739719855911,-740.82,0.00011123,2]
[353256496,1739719855920,-1055.86,0.00011123,2]
[353256497,1739719855929,-500.0,0.00011123,2]
[353256498,1739719855938,-1117.63,0.00011123,2]
[353256499,1739719855947,-857.05,0.00011123,2]
[353256500,1739719855956,-504.57848659,0.00011123,2]
[353256501,1739719855966,-500.0,0.00011123,2]
[353256502,1739719855975,-500.0,0.00011123,2]
[353256503,1739719855984,-500.0,0.00011123,2]
[353256504,1739719855993,-500.0,0.00011123,2]
[353256505,1739719856002,-436.59,0.00011136,2]
[353256506,1739719856011,-582.0,0.00011178,2]
[353256507,1739719856020,-150.0,0.00011178,2]
[353256508,1739719856030,-53731.0,0.00011178,2]
[353256509,1739719856040,-220.79207821,0.00011178,2]
[353256510,1739719856050,-150.0,0.00011178,2]
[353256511,1739719856059,-203.8,0.000112,2]
[353256512,1739719856068,-500.0,0.00011204,2]
[353256513,1739719856077,-500.0,0.00011204,2]
[353256514,1739719856086,-500.0,0.00011204,2]
[353256515,1739719856095,-500.0,0.00011205,2]
[353256516,1739719856104,-500.0,0.00011205,2]
[353256517,1739719856113,-500.0,0.00011205,2]
[353256518,1739719856122,-500.0,0.00011205,2]
[353256519,1739719856131,-500.0,0.00011205,2]
[353256520,1739719856140,-530.90677712,0.00011205,2]
[353256521,1739719856150,-380.96121445,0.00011205,2]
[353256522,1739719856159,-500.0,0.00011205,2]
[353256523,1739719856168,-509.66,0.00011205,2]
[353256524,1739719856177,-500.0,0.00011205,2]
[353256525,1739719856186,-323.92,0.00011205,2]
[353256526,1739719856195,-500.0,0.00011205,2]
[353256527,1739719856204,-500.0,0.00011205,2]
[353256528,1739719856216,-500.0,0.00011205,2]
[353256529,1739719856225,-500.0,0.00011205,2]
[353256530,1739719856234,-500.0,0.00011205,2]
[353256531,1739719856243,-625.08,0.00011205,2]
[353256532,1739719856252,-500.0,0.00011205,2]
[353256533,1739719856261,-500.0,0.00011205,2]
[353256534,1739719856271,-189.49,0.00011205,2]
[353256535,1739719856280,-216.95110992,0.00011205,2]
[353256536,1739719856290,-500.0,0.00011205,2]
[353256537,1739719856300,-500.0,0.00011205,2]
[353256538,1739719856310,-466.67925655,0.00011205,2]
[353256539,1739719856319,-500.0,0.00011205,2]
[353256540,1739719856329,-197.54643884,0.00011205,2]
[353256541,1739719856338,-153.28,0.00011205,2]
[353256542,1739719856348,-500.0,0.00011205,2]
[353256543,1739719856358,-500.0,0.00011205,2]
[353256544,1739719856368,-500.0,0.00011205,2]
[353256545,1739719856377,-500.0,0.00011205,2]
[353256546,1739719856387,-546.98,0.00011205,2]
[353256547,1739719856397,-778.31,0.00011205,2]
[353256548,1739719856407,-500.0,0.00011205,2]
[353256549,1739719856416,-500.0,0.00011205,2]
[353256550,1739719856426,-720.05,0.00011205,2]
[353256551,1739719856435,-500.0,0.00011205,2]
[353256552,1739719856445,-500.0,0.00011205,2]
[353256553,1739719856454,-500.0,0.00011205,2]
[353256554,1739719856463,-500.0,0.00011205,2]
[353256555,1739719856472,-982.93,0.00011205,2]
[353256556,1739719856481,-500.0,0.00011205,2]
[353256557,1739719856490,-610.07,0.00011205,2]
[353256558,1739719856499,-500.0,0.00011205,2]
[353256559,1739719856508,-500.0,0.00011205,2]
[353256560,1739719856518,-812.65,0.00011205,2]
[353256561,1739719856527,-500.0,0.00011205,2]
[353256562,1739719856536,-500.0,0.00011205,2]
[353256563,1739719856545,-500.0,0.00011205,2]
[353256564,1739719856554,-500.0,0.00011205,2]
[353256565,1739719856563,-500.0,0.00011205,2]
[353256566,1739719856573,-500.0,0.00011205,2]
[353256567,1739719856582,-188.98,0.00011205,2]
[353256568,1739719856591,-500.0,0.00011205,2]
[353256569,1739719856600,-500.0,0.00011205,2]
[353256570,1739719856609,-500.0,0.00011205,2]
[353256571,1739719856618,-500.0,0.00011205,2]
[353256572,1739719856627,-500.0,0.00011205,2]
[353256573,1739719856636,-761.58,0.00011205,2]
[353256574,1739719856645,-500.0,0.00011205,2]
[353256575,1739719856654,-500.0,0.00011205,2]
[353256576,1739719856663,-527.09,0.00011205,2]
[353256577,1739719856672,-500.0,0.00011205,2]
[353256578,1739719856682,-1082.54,0.00011205,2]
[353256579,1739719856690,-797.05,0.00011205,2]
[353256580,1739719856700,-500.0,0.00011205,2]
[353256581,1739719856709,-500.0,0.00011205,2]
[353256582,1739719856718,-500.0,0.00011205,2]
[353256583,1739719856727,-717.56,0.00011205,2]
[353256584,1739719856736,-607.4,0.00011205,2]
[353256585,1739719856746,-500.0,0.00011205,2]
[353256586,1739719856756,-500.0,0.00011205,2]
[353256587,1739719856764,-682.32,0.00011205,2]
[353256588,1739719856774,-500.0,0.00011205,2]
[353256589,1739719856783,-500.0,0.00011205,2]
[353256590,1739719856792,-1095.09,0.00011205,2]
[353256591,1739719856801,-500.0,0.00011205,2]
[353256592,1739719856811,-500.0,0.00011205,2]
[353256593,1739719856820,-500.0,0.00011205,2]
[353256594,1739719856829,-500.0,0.00011205,2]
[353256595,1739719856839,-500.0,0.00011205,2]
[353256596,1739719856848,-500.0,0.00011205,2]
[353256597,1739719856858,-500.0,0.00011205,2]
[353256598,1739719856867,-500.0,0.00011205,2]
[353256599,1739719856877,-500.0,0.00011205,2]
[353256600,1739719856886,-500.0,0.00011205,2]
[353256601,1739719856896,-500.0,0.00011205,2]
[353256602,1739719856905,-500.0,0.00011205,2]
[353256603,1739719856915,-500.0,0.00011205,2]
[353256604,1739719856924,-500.0,0.00011205,2]
[353256605,1739719856934,-500.0,0.00011205,2]
[353256606,1739719856943,-500.03943536,0.00011205,2]
[353256607,1739719856953,-500.0,0.00011205,2]
[353256608,1739719856962,-752.79,0.00011205,2]
[353256609,1739719856971,-693.95,0.00011205,2]
[353256610,1739719856980,-500.0,0.00011205,2]
[353256611,1739719856989,-606.73,0.00011205,2]
[353256612,1739719856999,-500.0,0.00011205,2]
[353256613,1739719857008,-624.98,0.00011205,2]
[353256614,1739719857018,-500.0,0.00011205,2]
[353256615,1739719857027,-500.0,0.00011205,2]
[353256616,1739719857037,-500.0,0.00011205,2]
[353256617,1739719857046,-500.0,0.00011205,2]
[353256618,1739719857055,-500.0,0.00011205,2]
[353256619,1739719857065,-562.44,0.00011205,2]
[353256620,1739719857074,-500.0,0.00011205,2]
[353256621,1739719857083,-791.35,0.00011205,2]
[353256622,1739719857093,-500.0,0.00011205,2]
[353256623,1739719857102,-500.0,0.00011205,2]
[353256624,1739719857287,-500.0,0.00011205,2]
[353256625,1739719857297,-500.0,0.00011205,2]
[353256626,1739719857306,-1070.44,0.00011205,2]
[353256627,1739719857315,-500.0,0.00011205,2]
[353256628,1739719857325,-887.17,0.00011205,2]
[353256629,1739719857334,-500.0,0.00011205,2]
[353256630,1739719857344,-801.39237,0.00011205,2]
[353256631,1739719857353,-500.0,0.00011205,2]
[353256632,1739719857363,-500.0,0.00011205,2]
[353256633,1739719857372,-658.15,0.00011205,2]
[353256634,1739719857381,-500.0,0.00011205,2]
[353256635,1739719857390,-500.0,0.00011205,2]
[353256636,1739719857400,-500.0,0.00011205,2]
[353256637,1739719857409,-500.0,0.00011205,2]
[353256638,1739719857418,-500.0,0.00011205,2]
[353256639,1739719857430,-723.28,0.00011205,2]
[353256640,1739719857439,-500.0,0.00011205,2]
[353256641,1739719857449,-1036.138115,0.00011205,2]
[353256642,1739719857458,-615.74,0.00011205,2]
[353256643,1739719857468,-500.0,0.00011205,2]
[353256644,1739719857477,-500.0,0.00011205,2]
[353256645,1739719857487,-500.0,0.00011205,2]
[353256646,1739719857496,-500.0,0.00011205,2]
[353256647,1739719857506,-500.0,0.00011205,2]
[353256648,1739719857516,-500.0,0.00011205,2]
[353256649,1739719857525,-500.0,0.00011205,2]
[353256650,1739719857536,-500.0,0.00011205,2]
[353256651,1739719857545,-500.0,0.00011205,2]
[353256652,1739719857555,-500.0,0.00011205,2]
[353256653,1739719857565,-500.0,0.00011205,2]
[353256654,1739719857574,-500.0,0.00011205,2]
[353256655,1739719857584,-500.0,0.00011205,2]
[353256656,1739719857593,-500.0,0.00011205,2]
[353256657,1739719857602,-500.0,0.00011205,2]
[353256658,1739719857612,-503.97,0.00011205,2]
[353256659,1739719857621,-500.0,0.00011205,2]
[353256660,1739719857630,-500.0,0.00011205,2]
[353256661,1739719857640,-500.0,0.00011205,2]
[353256662,1739719857649,-500.0,0.00011205,2]
[353256663,1739719857659,-500.0,0.00011205,2]
[353256664,1739719857669,-500.0,0.00011205,2]
[353256665,1739719857678,-500.0,0.00011205,2]
[353256666,1739719857688,-1142.85,0.00011205,2]
[353256667,1739719857697,-500.0,0.00011205,2]
[353256668,1739719857706,-500.0,0.00011205,2]
[353256669,1739719857716,-500.0,0.00011205,2]
[353256670,1739719857726,-572.02,0.00011205,2]
[353256671,1739719857736,-500.0,0.00011205,2]
[353256672,1739719857745,-500.0,0.00011205,2]
[353256673,1739719857756,-500.0,0.00011205,2]
[353256674,1739719857765,-564.69,0.00011205,2]
[353256675,1739719857775,-551.48,0.00011205,2]
[353256676,1739719857784,-500.0,0.00011205,2]
[353256677,1739719857793,-500.0,0.00011205,2]
[353256678,1739719857802,-676.69,0.00011205,2]
[353256679,1739719857811,-500.0,0.00011205,2]
[353256680,1739719857820,-615.32,0.00011205,2]
[353256681,1739719857830,-500.0,0.00011205,2]
[353256682,1739719857839,-500.0,0.00011205,2]
[353256683,1739719857849,-594.63,0.00011205,2]
[353256684,1739719857858,-500.0,0.00011205,2]
[353256685,1739719857868,-647.43,0.00011205,2]
[353256686,1739719857878,-500.0,0.00011205,2]
[353256687,1739719857887,-605.03,0.00011205,2]
[353256688,1739719857897,-253.00998709,0.00011205,2]
[353256689,1739719857907,-737.6,0.00011205,2]
[353256690,1739719857917,-500.0,0.00011205,2]
[353256691,1739719857927,-500.0,0.00011205,2]
[353256692,1739719857936,-161.68,0.00011205,2]
[353256693,1739719857947,-500.0,0.00011205,2]
[353256694,1739719857957,-677.67,0.00011205,2]
[353256695,1739719857968,-500.0,0.00011205,2]
[353256696,1739719857978,-500.0,0.00011205,2]
[353256697,1739719857987,-856.01,0.00011205,2]
[353256698,1739719857996,-580.88,0.00011205,2]
[353256699,1739719858006,-500.0,0.00011205,2]
[353256700,1739719858016,-500.0,0.00011205,2]
[353256701,1739719858026,-500.0,0.00011205,2]
[353256702,1739719858036,-500.0,0.00011205,2]
[353256703,1739719858046,-547.28,0.00011205,2]
[353256704,1739719858055,-659.59,0.00011205,2]
[353256705,1739719858065,-500.0,0.00011205,2]
[353256706,1739719858075,-500.0,0.00011205,2]
[353256707,1739719858086,-500.0,0.00011205,2]
[353256708,1739719858096,-280.47,0.00011205,2]
[353256709,1739719858106,-500.0,0.00011205,2]
[353256710,1739719858116,-163.18,0.00011205,2]
[353256711,1739719858125,-500.0,0.00011205,2]
[353256712,1739719858134,-500.0,0.00011205,2]
[353256713,1739719858144,-500.0,0.00011205,2]
[353256714,1739719858154,-500.0,0.00011205,2]
[353256715,1739719858163,-500.0,0.00011205,2]
[353256716,1739719858172,-679.65,0.00011205,2]
[353256717,1739719858182,-635.55,0.00011205,2]
[353256718,1739719858191,-500.0,0.00011205,2]
[353256719,1739719858202,-1531.02,0.00011205,2]
[353256720,1739719858214,-500.0,0.00011205,2]
[353256721,1739719858224,-500.0,0.00011205,2]
[353256722,1739719858234,-710.02,0.00011205,2]
[353256723,1739719858244,-552.24,0.00011205,2]
[353256724,1739719858254,-609.92,0.00011205,2]
[353256725,1739719858264,-775.33,0.00011205,2]
[353256726,1739719858273,-927.32,0.00011205,2]
[353256727,1739719858282,-1091.82,0.00011205,2]
[353256728,1739719858293,-833.8,0.00011205,2]
[353256729,1739719858302,-713.28,0.00011205,2]
[353256730,1739719858312,-2162.44,0.00011205,2]
[353256731,1739719858321,-500.0,0.00011205,2]